Cogmind - Beta 14 @@@ ROGUE MODE // 2024.11.23 @ 17:22:31 Player: Suikeina Result: Destroyed self via exploding Plasma Injector Performance ------------- Evolutions (0) 0 Regions Visited (2) 400 Robots Destroyed (32) 160 Value Destroyed (560) 560 Prototype IDs (0) 0 Alien Tech Used (0) 0 Bonus (2) 2 TOTAL SCORE: 1122 Bonus ------- High Alert Combat Kills 2 Cogmind --------- Core Integrity 0/250 Matter 287/300 Energy 124/125 System Corruption 0% Temperature Cool (12) Movement Walking (120) Location -10/Mines Parts ------- > --- POWER (1) -------- Light Ion Engine > --- PROPULSION (2) --- Aluminum Leg Aluminum Leg > --- UTILITY (2) ------ Small Storage Unit Weapon Shielding > --- WEAPON (2) ------- Assault Rifle Grenade Launcher > --- INVENTORY (8) ---- Aluminum Leg Structural Scanner Visual Processing Unit Weapon Shielding Light Armor Plating Light Assault Rifle Rocket Launcher Peak State ------------ > --- POWER ------------ Light Ion Engine > --- PROPULSION ------- Aluminum Leg Aluminum Leg > --- UTILITY ---------- Small Storage Unit Weapon Shielding > --- WEAPON ----------- Assault Rifle Grenade Launcher > --- INVENTORY -------- Aluminum Leg Structural Scanner Visual Processing Unit Weapon Shielding Light Armor Plating Light Assault Rifle Light Assault Rifle Rocket Launcher [Rating: 8] Favorites ----------- Power Light Ion Engine Engine Light Ion Engine Propulsion Aluminum Leg Leg Aluminum Leg Utility Small Storage Unit Device Heat Sink Storage Small Storage Unit Processor Signal Interpreter Protection Weapon Shielding Weapon Light Assault Rifle Energy Gun Small Laser Ballistic Gun Light Assault Rifle Launcher Grenade Launcher Build | -11 -10 -10 ------- Run | Yrd Mat Min Slots Evolved . | . . . Power . | . . . Propulsion . | . . . Utility . | . . . Weapon . | . . . Parts Attached 34 | 7 21 6 Power 3 | 1 2 . Engine 3 | 1 2 . Core . | . . . Reactor . | . . . Propulsion 8 | 2 5 1 Treads . | . . . Leg 8 | 2 5 1 Wheel . | . . . Hover . | . . . Flight . | . . . Utility 5 | 1 3 1 Device 1 | . 1 . Storage 2 | 1 1 . Processor 1 | . 1 . Hackware . | . . . Protection 1 | . . 1 Artifact . | . . . Weapon 18 | 3 11 4 Energy Gun 3 | 1 2 . Energy Cannon . | . . . Ballistic Gun 10 | 2 6 2 Ballistic Cannon . | . . . Launcher 5 | . 3 2 Special Weapon . | . . . Impact Weapon . | . . . Slashing Weapon . | . . . Piercing Weapon . | . . . Special Melee Weapon . | . . . Unidentified Prototypes . | . . . Parts Lost 1 | . . 1 Power . | . . . Propulsion . | . . . Utility 1 | . . 1 Weapon . | . . . Highest Loss Streak 1 | . . 1 To Critical Strikes . | . . . Average Slot Usage (%) 97 | . 98 97 Engine 13 | . 13 14 Leg 28 | . 28 28 Device 2 | . 3 . Storage 14 | . 14 14 Processor 6 | . 7 3 Protection 3 | . . 8 Energy Gun 1 | . 2 . Ballistic Gun 23 | . 23 24 Launcher 2 | . 2 3 Peak Build Rating 8 | 6 7 8 Average Rating 6 | 4 6 6 On Entrance 4 | . 6 7 Naked Turns . | . . . Heaviest Build 16 | 8 16 14 Greatest Support 20 | 20 20 20 Greatest Overweight (x) 1 | . 1 . Average Overweight (x) . | . . . Largest Inventory Capacity 8 | 5 8 8 Average Capacity 7 | 5 6 8 Most Carried 8 | 4 8 8 Average Carried 5 | 1 6 6 Final Capacity 8 | 5 8 8 Final Carried 7 | 4 7 7 Class Distribution -------------------- 78% | Scavenger-Mutant 21% | Mutant Dominant Class ---------------- Scavenger-Mutant | -10/Materials Scavenger-Mutant | -10/Mines Resources | -11 -10 -10 ----------- Run | Yrd Mat Min Matter Collected 899 | 389 393 117 Remotely . | . . . Salvage Created 673 | 112 441 120 Parts 68 | 14 46 8 Haulers Intercepted . | . . . Recyclers Shooed 1 | . 1 . Parts Field Recycled . | . . . Retrieved Matter . | . . . Parts Self-Destructed . | . . . Prevented . | . . . Kills | -11 -10 -10 ------- Run | Yrd Mat Min Combat Hostiles Destroyed 22 | 1 16 5 Guns 14 | 1 11 2 AOE 8 | . 5 3 Classes Destroyed 7 | 3 3 1 Worker 3 | 1 2 . Builder 1 | . . 1 Tunneler 3 | 3 . . Recycler 1 | . 1 . Watcher 2 | . 2 . Swarmer 12 | . 9 3 Grunt 10 | 1 7 2 Best Kill Streak 4 | 2 4 3 Combat Bots Only 3 | 1 3 3 Max Kills in Single Turn 3 | 1 3 1 Gunslinging . | . . . Exploded 2 | . 2 1 Melee . | . . . Uniques/NPCs Destroyed . | . . . Combat | -11 -10 -10 -------- Run | Yrd Mat Min Hostile Shots Fired 153 | 12 120 21 Missed 58 | 3 46 9 Damage Taken 1073 | 104 777 192 Core 273 | 12 180 81 Absorbed by Shields . | . . . Redirected to Shielding 4 | . . 4 Core Remaining (%) 95 | 95 . . Volleys Fired 120 | 15 95 10 Largest 2 | 2 2 2 Hottest 60 | 60 60 50 Shots Fired 219 | 30 169 20 Gun 205 | 30 161 14 Cannon . | . . . Launcher 14 | . 8 6 Special . | . . . Kinetic 180 | 15 151 14 Thermal 25 | 15 10 . Explosive 14 | . 8 6 Electromagnetic . | . . . Robot Hit Streak 9 | 4 9 5 Robot Miss Streak 8 | 3 8 1 Penetration Max . | . . . Secondary Targets . | . . . Shots Hit Robots 103 | 17 79 7 Core Hits 55 | 5 42 8 Critical Kills . | . . . Critical Parts Destroyed . | . . . Critical Strikes . | . . . Melee Attacks . | . . . Impact . | . . . Slashing . | . . . Piercing . | . . . Sneak Attacks . | . . . Combat Hostiles . | . . . Follow-up Attacks . | . . . Damage Inflicted 1660 | 216 1209 235 Guns 994 | 216 724 54 Cannons . | . . . Explosions 655 | . 481 174 Melee . | . . . Ramming 11 | . 4 7 Kinetic 855 | 131 670 54 Thermal 139 | 85 54 . Explosive 655 | . 481 174 Electromagnetic . | . . . Impact . | . . . Slashing . | . . . Piercing . | . . . Highest Corruption . | . . . Average Corruption . | . . . Corruption Purged . | . . . Corruption Blocked . | . . . Overload Shots . | . . . Overflow Damage 8 | . 8 . Projectiles . | . . . Explosions 8 | . 8 . Melee . | . . . Knockbacks . | . . . Impact . | . . . Kinetic . | . . . Secondary . | . . . Self-Inflicted Damage 120 | . 34 86 Shots 4 | . 2 2 Rammed . | . . . Targets Rammed 4 | . 2 2 Kicked 4 | . 2 2 Crushed . | . . . Highest Temperature 54 | 54 48 10 Average Temperature 20 | 32 16 7 Received Heat Transfer 321 | 54 258 9 Siege Activations . | . . . Robots Corrupted . | . . . Combat Hostiles . | . . . Parts Fried . | . . . Impact Corruptions . | . . . Robots Melted . | . . . Combat Hostiles . | . . . Parts Melted . | . . . Heat Transferred 325 | 200 125 . Parts Sabotaged . | . . . Parts Stolen . | . . . Parts Stripped . | . . . Power Chain Reactions . | . . . Alert | -11 -10 -10 ------- Run | Yrd Mat Min Peak Influence 431 | 40 431 192 Initial 125 | . 26 125 Average 179 | 11 266 101 Maximum Alert Level 2 | . 2 . Low Security (%) 60 | 100 26 100 Level 1 31 | . 57 . Level 2 8 | . 15 . Level 3 . | . . . Level 4 . | . . . Level 5 . | . . . High Security . | . . . Max Security . | . . . Squads Dispatched 4 | . 4 . Investigation 1 | . 1 . Extermination . | . . . Reinforcement 3 | . 3 . Assault . | . . . Garrison . | . . . Intercept . | . . . Searches Triggered . | . . . Construction Impeded . | . . . Haulers Reinforced . | . . . Active Scanning Responses . | . . . Cargo Convoy Interrupts . | . . . Stealth | -11 -10 -10 --------- Run | Yrd Mat Min Distress Signals 1 | . 1 . Communications Jammed . | . . . Distress Signals . | . . . Times Spotted 33 | 1 28 4 Peak Tracking Total 3 | 1 3 3 Tactical Retreats 3 | . 3 . Traps | -11 -10 -10 ------- Run | Yrd Mat Min Traps Triggered 2 | . 2 . Indirectly . | . . . Trap Hack Attempts . | . . . Triggered . | . . . Disarmed . | . . . Reprogrammed . | . . . Reused . | . . . Traps Extracted . | . . . Installed . | . . . Triggered . | . . . Machines | -11 -10 -10 ---------- Run | Yrd Mat Min Machines Disabled 2 | . 1 1 Max in Single Turn 1 | . 1 1 Machines Repaired . | . . . Machines Dismantled . | . . . Machines Sabotaged . | . . . Overloaded Fab Kills . | . . . Hacking | -11 -10 -10 --------- Run | Yrd Mat Min Machines Accessed . | . . . Terminals . | . . . Fabricators . | . . . Repair Stations . | . . . Recycling Units . | . . . Scanalyzers . | . . . Garrison Access . | . . . Total Hacks . | . . . Successful . | . . . Failed . | . . . Catastrophic . | . . . Database Lockouts . | . . . Manual . | . . . Terminals . | . . . Fabricators . | . . . Repair Stations . | . . . Recycling Units . | . . . Scanalyzers . | . . . Garrison Access . | . . . Terminal Hacks . | . . . Fabricator Hacks . | . . . Repair Station Hacks . | . . . Recycling Unit Hacks . | . . . Scanalyzer . | . . . Garrison Access Hacks . | . . . Unauthorized Hacks . | . . . Terminals . | . . . Fabricators . | . . . Repair Stations . | . . . Recycling Units . | . . . Scanalyzers . | . . . Garrison Access . | . . . Data Cores Recovered . | . . . Used . | . . . Hacking Detections . | . . . Full Trace Events . | . . . Feedback Events . | . . . Feedback Blocked . | . . . Robot Schematics Acquired . | . . . Robots Built . | . . . Authchips . | . . . Time . | . . . Total Robot Build Rating . | . . . Part Schematics Acquired . | . . . Parts Built . | . . . Authchips . | . . . Time . | . . . Total Part Build Rating . | . . . Parts Repaired . | . . . Time . | . . . Parts Recycled . | . . . Recycled Matter . | . . . Retrieved Matter . | . . . Retrieved Components . | . . . Parts Scanalyzed . | . . . Part Schematics Acquired . | . . . Parts Damaged . | . . . Bothacking | -11 -10 -10 ------------ Run | Yrd Mat Min Used RIF Installer . | . . . Robots Hacked . | . . . Non-combat . | . . . Combat . | . . . Robot Hacks Applied . | . . . Relay Couplers Released . | . . . Fabnet Peak Effective % . | . . . Robots Rewired . | . . . Allies Hacked . | . . . Hacks Repelled . | . . . Allies | -11 -10 -10 -------- Run | Yrd Mat Min Total Allies . | . . . Largest Group . | . . . Highest-Rated Group . | . . . Highest-Rated Ally . | . . . Total Orders . | . . . Ally Attacks . | . . . Total Damage . | . . . Kills . | . . . Allies Corrupted . | . . . Allies Melted . | . . . Intel | -11 -10 -10 ------- Run | Yrd Mat Min Robot Analysis Total . | . . . Derelict Logs Recovered 2 | . . 2 Drone Launches . | . . . Drone Recoveries . | . . . Exploration | -11 -10 -10 ------------- Run | Yrd Mat Min Turns Passed 1896 | 221 1018 657 Spaces Moved 1241 | 144 583 514 Core 19 | 19 . . Treads . | . . . Legs 1222 | 125 583 514 Wheels . | . . . Hover . | . . . Flight . | . . . Fastest Speed 50 | 50 120 120 Average Speed 118 | 110 120 120 Slowest Speed 190 | 120 190 120 Overloaded Moves . | . . . Propulsion Burnouts . | . . . Robots Hopped . | . . . Cave-ins Triggered . | . . . Exploration Rate (%) 53 | 7 66 86 Regions Visited 2 Branch Regions 1 Pre-discovered Areas . | . . . Known Exits Taken 1 | . 1 . Unknown Exits Taken 1 | 1 . . Scrap Searched 2 | . . 2 Spaces Dug . | . . . Terrain Destroyed 71 | . 50 21 Melee . | . . . Projectile . | . . . AOE 71 | . 50 21 Terrain Rammed . | . . . Walls Destroyed . | . . . Machines Disabled . | . . . Actions | -11 -10 -10 --------- Run | Yrd Mat Min Total 1473 | 176 758 539 Wait 24 | . 24 . Move 1239 | 143 582 514 Hop . | . . . Pick Up 34 | 10 20 4 Fast Attach . | . . . Attach 18 | 7 9 2 Detach 1 | 1 . . Swap 16 | . 12 4 Drop 17 | . 14 3 Fire 120 | 15 95 10 Melee . | . . . Ram . | . . . Kick 4 | . 2 2 Crush . | . . . Escape Stasis . | . . . Rewire . | . . . Trap . | . . . Miscellaneous . | . . . Route ------- -11/Scrapyard -10/Materials -10/Mines (discovered 3 exits: *Mat x2 / Sub) History --------- Turn | Location | Event 2 | -11/Scrapyard | Met Revision 17 132 | -11/Scrapyard | Discovered new exit (range 8) 222 | -11/Scrapyard | Entered Materials 318 | -10/Materials | Build established: Mutant 533 | -10/Materials | Core integrity fell below 50% 641 | -10/Materials | Discovered new exit (range 15) 687 | -10/Materials | Identified exit to Mines 720 | -10/Materials | Build established: Scavenger-Mutant 1240 | -10/Materials | Entered Mines 1286 | -10/Mines | Found a hidden stash of uninstalled traps 1315 | -10/Mines | Identified exit to Subcaves 1336 | -10/Mines | Discovered new exit (range 4) 1340 | -10/Mines | Identified exit to Materials 1411 | -10/Mines | Core integrity fell below 20% 1431 | -10/Mines | Assembled infested the area 1847 | -10/Mines | Discovered exit to Materials (range 10) 1848 | -10/Mines | Received a Rocket Launcher from a helpful Derelict 1897 | -10/Mines | Destroyed self via exploding Plasma Injector Last Messages --------------- Need a big hole in the wall? Done." 8L-A23(g): "Need a small hole in the wall? Leave that to the mining laser wimps, I say!" EXIT=FOUND: MATERIALS 8L-A23(g): "Would you like a rocket launcher? I know I would if I were you, so I'm going to lend you mine." 8L-A23(g) slips back into the shadows. Acquired Rocket Launcher. U-05 Engineer lays Concrete. Acquired 26 matter. U-05 Engineer lays Concrete. Acquired Aluminum Leg. U-05 Engineer lays Concrete. Dropped Aluminum Leg. Acquired Aluminum Leg. U-05 Engineer lays Concrete. Dropped Lgt. Assault Rifle. U-05 Engineer destroyed. Plasma Injector explodes. Map ----- +----------------------------------------------------+ | ?????????????????? #????????# ## | | ?????????????????? #???????## | | ?????????????????? #?###???# | | ?????????????????? ## #???# | | ????????????????##% ????## | | ???????????????## ??????#### | | ??????????????## < ??????????# | | ??????????????# % ??????????? | | ??????????????# ???????????? | | ?????????????## ????????????? | | ?????????????# #????????????? | | ?????????????# ##???????????? | | ??????????????# #?????????### | | ??????????????# #????????## | | ??????????????# #???????## | | ??????????????## ##??????## | | ???????????????## #??????## | | ????????????????# #?????## | | ??????########### #?????# | | ??????# !% #?????# | | ????### #?????## | | ??### ## ### ####??????## | | ??# ## ############ | | ??# ## | | ??# * * ### ########### # | | ??# %!@ ### #?????????## ## | | ??# = #??????????####? | | ??### #####??????????????? | | ????##########??????????????????? | | ????????????????????????????????? | | ????????????????????????????????? | | ????????????????????????????????? | | ????????????????????????????????? | | ????????????????????????????????? | | | | | | | | | | | | | | | | | | | | | | | | | | | | | | | | | +----------------------------------------------------+ Best States ------------- Heat Dissipation 35 Energy Generation 10 Energy Capacity 250 Matter Stores 400 Matter Capacity 400 Sight Range 16 Terrain Scan Density 10 Weapon Shielding 33 Evasion (%) 55 Item Schematics ----------------- None Robot Schematics ------------------ None Fabricated ------------ Nothing Alien Tech Used ----------------- None Achievements -------------- None Challenges ------------ None Game ------ Seed BombardmentCobblerSegregator Manual? 0 Play Time 00:22:20 Cumulative 2.4 hours Start 2024.11.23 @ 09:42:23 End 2024.11.23 @ 17:22:31 Sessions 2 Manual Loads 0 Difficulty Rogue Special Mode None Game No. 3 Rogue 3 Adventurer 0 Explorer 0 Win Type - Total 0 Types 0/0/0/0/0/0/0/0/0 Lore% 6 Gallery% 3 Achievement% 4 Wizard Run 0 Options --------- Layout 1 ASCII 0 Keyboard 0 Movement Mouse Keybinds 0 Fullscreen 2 Font 24/Smallcaps Map View 50x35 Zoom Use 0% Tactical HUD 0 Map Filters NONE Filters NONE Steam 1 RUN: 31fd190d-5940-4976-b4f4-a512adfac9b6